bitfinex/quotes_SOLUSD_20250616
["timestamp","ask_amount","ask_price","bid_price","bid_amount"]
[1750114643336,15.28287001,153.11,153.07,22.86535571]
[1750114643531,15.28287001,153.11,153.07,38.14822572]
[1750114643734,11.50592914,153.15,153.09,15.28287001]
[1750114643951,15.28287001,153.13,153.09,15.28287001]
[1750114644444,55.52287001,153.14,153.09,15.28287001]
[1750114644750,15.28287001,153.13,153.09,22.86236853]
[1750114645368,55.52287001,153.14,153.09,70.80576502]
[1750114645867,40.24,153.14,153.09,70.80576502]
[1750114646051,55.52287001,153.14,153.09,70.80576502]
[1750114646557,51.72592914,153.15,153.09,70.80576502]
[1750114646757,15.28287001,153.14,153.09,70.80576502]
[1750114646952,15.28287001,153.14,153.09,58.84769121]
[1750114646953,9.85690149,153.14,153.09,58.84769121]
[1750114647940,9.85690149,153.14,153.09,65.3797965]
[1750114648340,9.85690149,153.14,153.1,9.85690149]
[1750114648973,9.85690149,153.13,153.09,65.3797965]
[1750114649272,9.85690149,153.13,153.09,55.52289501]
[1750114649575,51.64592914,153.15,153.09,65.3797965]
[1750114649744,9.85690149,153.13,153.09,65.3797965]
[1750114650160,9.85690149,153.13,153.09,55.52289501]
[1750114650651,9.85690149,153.13,153.09,65.3797965]
[1750114650850,9.85690149,153.11,153.09,22.86236853]
[1750114651157,9.85690149,153.12,153.09,22.86236853]
[1750114652039,9.85690149,153.12,153.09,16.33026324]
[1750114652678,9.85690149,153.1,153.08,6.532532]
[1750114652877,11.64809071,153.15,153.08,6.532532]
[1750114652878,49.87690149,153.09,153.08,6.532532]
[1750114653166,49.87690149,153.09,153.04,6.53423941]
[1750114653464,9.85690149,153.05,153.04,6.53423941]
[1750114653853,9.85690149,153.06,153.04,6.53423941]
[1750114654064,18.64964886,153.04,153.02,43.57937278]
[1750114654243,9.6451,153.05,153.01,6.53548669]
[1750114654561,39.96,153.05,153.02,9.85690149]
[1750114654941,49.81690149,153.08,153.03,9.85690149]
[1750114655148,9.85690149,153.08,153.03,9.85690149]
[1750114655371,9.85690149,153.08,153.04,9.85690149]
[1750114655564,9.85690149,153.08,153.01,55.55189084]
[1750114655870,49.79690149,153.09,153.04,9.85690149]
[1750114656039,49.79690149,153.09,153.05,32.72524515]
[1750114656236,9.85690149,153.09,153.05,32.72524515]
[1750114656439,21.05944886,153.12,153.06,9.85690149]
[1750114656440,39.92,153.12,153.06,9.85690149]
[1750114656650,9.85690149,153.11,153.06,9.85690149]
[1750114656875,18.64964886,153.14,153.06,9.85690149]
[1750114657168,9.85690149,153.11,153.06,9.85690149]
[1750114657471,9.85690149,153.1,153.05,22.86834366]
[1750114657668,9.85690149,153.1,153.06,9.85690149]
[1750114657875,9.85690149,153.12,153.07,9.85690149]
[1750114658168,9.85690149,153.12,153.08,6.532532]
[1750114658373,9.85690149,153.12,153.08,22.86386202]
[1750114658861,39.86,153.13,153.08,38.12100504]
[1750114659054,9.5608,153.19,153.08,48.86386202]
[1750114659267,15.25714302,153.14,153.08,48.86386202]
[1750114659459,15.25714302,153.13,153.08,64.12100504]
[1750114659968,15.25714302,153.14,153.1,22.86087524]
[1750114660566,15.25714302,153.15,153.1,38.11801826]
[1750114660760,15.25714302,153.17,153.12,15.25714302]
[1750114661062,15.25714302,153.16,153.11,15.25714302]
[1750114661480,15.25714302,153.17,153.12,15.25714302]
[1750114662480,15.25714302,153.17,153.13,6.530399]
[1750114662654,15.25714302,153.16,153.13,6.530399]
[1750114662856,15.25714302,153.16,153.13,22.85639651]
[1750114663080,15.25714302,153.15,153.13,6.530399]
[1750114663287,39.74,153.17,153.13,6.530399]
[1750114663482,15.25714302,153.16,153.13,6.530399]
[1750114663680,54.99714302,153.17,153.13,6.530399]
[1750114664061,15.25714302,153.16,153.13,6.530399]
[1750114665091,9.5608,153.19,153.14,15.25714302]
[1750114665383,15.25714302,153.26,153.18,15.25714302]
[1750114665585,13.79001029,153.27,153.23,15.25714302]
[1750114665789,12.01788609,153.29,153.17,26.0]
[1750114665790,15.25714302,153.29,153.17,26.0]
[1750114665960,15.25714302,153.29,153.19,26.0]
[1750114665961,15.25714302,153.24,153.19,26.0]
[1750114666162,15.25714302,153.21,153.16,15.25714302]
[1750114666377,15.25714302,153.2,153.16,41.25714302]
[1750114666594,15.25714302,153.2,153.17,6.5286936]
[1750114666814,15.25714302,153.21,153.17,6.5286936]
[1750114667303,39.66,153.24,153.17,6.5286936]
[1750114667304,15.25714302,153.2,153.17,6.5286936]
[1750114667591,39.66,153.24,153.17,21.78583662]
[1750114667766,15.25714302,153.21,153.17,21.78583662]
[1750114668161,15.25714302,153.22,153.17,21.78583662]
[1750114668596,15.25714302,153.21,153.17,6.5286936]
[1750114668769,15.25714302,153.18,153.16,6.52899678]
[1750114669094,15.25714302,153.23,153.14,26.0]
[1750114669095,39.58,153.19,153.15,6.52943379]
[1750114669590,15.25714302,153.16,153.15,6.52943379]
[1750114670270,15.25714302,153.16,153.14,32.52997257]
[1750114670982,39.58,153.19,153.14,32.52997257]
[1750114671306,39.58,153.19,153.14,6.52997257]
[1750114671307,15.25714302,153.15,153.14,6.52997257]
[1750114671487,39.58,153.19,153.11,6.53125204]
[1750114671688,15.25714302,153.18,153.13,15.25714302]
[1750114672064,39.58,153.19,153.13,15.25714302]
[1750114672366,15.25714302,153.18,153.14,6.52997257]
[1750114672691,15.25714302,153.17,153.14,6.52997257]
[1750114672878,15.25714302,153.16,153.14,6.52997257]
[1750114673388,15.25714302,153.15,153.14,6.52997257]
[1750114674181,15.25714302,153.15,153.12,6.53082549]
[1750114674380,15.25714302,153.14,153.12,6.53082549]
[1750114675476,15.25714302,153.13,153.1,6.53167864]
[1750114675669,15.25714302,153.12,153.1,6.53167864]
[1750114675866,39.46,153.17,153.1,6.53167864]
[1750114675867,15.25714302,153.13,153.1,6.53167864]
[1750114676075,39.46,153.17,153.1,6.53167864]
[1750114676076,15.25714302,153.12,153.1,6.53167864]
[1750114677365,15.25714302,153.11,153.1,6.53167864]
[1750114678097,15.25714302,153.11,153.09,21.61201104]
[1750114678268,25.17884644,153.16,153.09,21.61201104]
[1750114678577,15.25714302,153.11,153.09,21.61201104]
[1750114678996,9.86038968,153.11,153.09,21.61201104]
[1750114679402,9.86038968,153.1,153.09,21.61201104]
[1750114679595,10.1193,153.14,153.09,21.61201104]
[1750114679792,9.86038968,153.12,153.09,21.61201104]
[1750114680187,39.3,153.13,153.09,21.61201104]
[1750114680385,10.1193,153.19,153.12,9.86038968]
[1750114680699,9.86038968,153.17,153.12,9.86038968]
[1750114680902,9.86038968,153.19,153.14,9.86038968]
[1750114681192,9.86038968,153.19,153.09,47.94482553]
[1750114681193,9.86038968,153.19,153.15,9.86038968]
[1750114681371,9.86038968,153.2,153.16,6.52911987]
[1750114681573,9.86038968,153.22,153.17,9.86038968]
[1750114681882,10.1193,153.24,153.18,9.86038968]
[1750114682101,39.24,153.27,153.22,9.86038968]
[1750114682406,9.86038968,153.25,153.2,9.86038968]
[1750114683000,39.24,153.27,153.21,9.86038968]
[1750114683185,9.86038968,153.26,153.21,9.86038968]
[1750114683375,9.86038968,153.25,153.2,32.70634267]
[1750114683875,9.86038968,153.26,153.21,9.86038968]
[1750114684278,9.86038968,153.25,153.2,32.70634267]
[1750114684492,9.86038968,153.25,153.21,9.86038968]
[1750114684809,9.86038968,153.25,153.2,32.70634267]
[1750114685394,9.86038968,153.25,153.16,32.64559937]
[1750114685395,9.86038968,153.21,153.16,26.0]
[1750114685570,9.86038968,153.21,153.16,35.86038968]
[1750114685975,9.86038968,153.21,153.16,26.0]
[1750114686216,9.86038968,153.17,153.11,6.53125204]
[1750114686415,9.86038968,153.12,153.11,6.53125204]
[1750114686717,9.86038968,153.12,153.09,66.8]
[1750114686718,9.86038968,153.12,153.1,6.53160703]
[1750114687012,39.12,153.15,153.09,66.8]
[1750114687013,9.86038968,153.11,153.09,66.8]
[1750114687304,18.64964886,153.14,153.09,15.08]
[1750114687617,9.86038968,153.1,153.09,21.61210529]
[1750114687975,18.64964886,153.14,153.09,21.61210529]
[1750114688177,9.86038968,153.11,153.09,21.61210529]
[1750114688607,9.86038968,153.1,153.09,21.61210529]
[1750114688906,15.26103938,153.1,153.09,21.61210529]
[1750114689075,15.26103938,153.11,153.09,21.61210529]
[1750114689281,18.64964886,153.14,153.09,21.61210529]
[1750114689594,15.26103938,153.1,153.09,21.61210529]
[1750114689785,54.30103938,153.1,153.09,15.08]
[1750114690307,0.42648471,153.18,153.09,21.61210529]
[1750114690613,15.26103938,153.15,153.1,15.26103938]
[1750114690910,24.69393938,153.19,153.14,15.26103938]
[1750114691078,15.26103938,153.19,153.14,15.26103938]
[1750114691276,10.3585,153.23,153.15,15.26103938]
[1750114691475,15.26103938,153.2,153.16,6.52911987]
[1750114691905,15.26103938,153.21,153.16,38.11295893]
[1750114692088,15.26103938,153.2,153.16,22.85191955]
[1750114692283,15.26103938,153.2,153.16,38.11295893]
[1750114692491,15.26103938,153.2,153.16,22.85191955]
[1750114693108,38.96,153.22,153.16,22.85191955]
[1750114693109,38.96,153.22,153.16,6.52911987]
[1750114693412,15.26103938,153.18,153.16,6.52911987]
[1750114693587,15.26103938,153.2,153.16,6.52911987]
[1750114694111,15.26103938,153.19,153.16,6.52911987]
[1750114695090,15.26103938,153.21,153.16,38.11295893]
[1750114695717,15.26103938,153.2,153.15,15.26103938]
[1750114696383,15.26103938,153.19,153.14,15.26103938]
[1750114697011,38.96,153.22,153.15,15.26103938]
[1750114697173,15.26103938,153.2,153.15,15.26103938]
[1750114697378,15.26103938,153.19,153.15,15.26103938]
[1750114697588,15.26103938,153.18,153.1,28.46134033]
[1750114697810,15.26103938,153.15,153.11,26.0]
[1750114698013,15.26103938,153.16,153.11,41.26103938]
[1750114698487,15.26103938,153.15,153.11,32.53125204]
[1750114698996,54.08103938,153.17,153.12,15.26103938]
[1750114700002,15.26103938,153.15,153.11,6.53125204]
[1750114700205,15.26103938,153.14,153.11,6.53125204]
[1750114700411,15.26103938,153.16,153.11,21.79229142]
[1750114701002,38.82,153.17,153.11,21.79229142]
[1750114701003,15.26103938,153.15,153.11,6.53125204]
[1750114701204,15.26103938,153.14,153.11,6.53125204]
[1750114701707,15.26103938,153.12,153.1,6.53154895]
[1750114701886,18.64964886,153.16,153.1,6.53154895]
[1750114702087,15.26103938,153.16,153.11,15.26103938]
[1750114702710,38.82,153.17,153.11,15.26103938]
[1750114702881,38.82,153.17,153.1,22.86074555]
[1750114702882,54.08103938,153.17,153.12,15.26103938]
[1750114703085,15.26103938,153.16,153.11,15.26103938]
[1750114703296,38.82,153.17,153.11,15.26103938]
[1750114703602,54.08103938,153.17,153.12,15.26103938]
[1750114703903,54.08103938,153.17,153.13,6.530399]
[1750114704106,38.82,153.17,153.13,21.79143838]
[1750114704291,53.92103938,153.18,153.13,21.79143838]
[1750114704692,53.92103938,153.18,153.13,38.11743589]
[1750114704880,11.65803086,153.25,153.2,26.0]
[1750114705075,11.65803086,153.25,153.19,15.26103938]
[1750114705282,15.26103938,153.24,153.19,15.26103938]
[1750114705485,15.26103938,153.23,153.17,26.0]
[1750114705687,15.26103938,153.22,153.17,41.26103938]
[1750114705896,15.26103938,153.21,153.18,6.52826739]
[1750114706085,15.26103938,153.2,153.18,6.52826739]
[1750114706490,38.62,153.21,153.18,6.52826739]
[1750114706983,38.62,153.21,153.18,38.10997526]
[1750114707184,15.26103938,153.23,153.18,38.10997526]
[1750114707492,38.6,153.23,153.2,15.26103938]
[1750114708006,38.6,153.23,153.21,6.52698909]
[1750114708205,38.6,153.23,153.21,21.78802847]
[1750114708417,38.6,153.23,153.21,6.52698909]
[1750114708619,15.26103938,153.25,153.21,6.52698909]
[1750114708783,48.40276373,153.25,153.21,6.52698909]
[1750114708988,48.40276373,153.25,153.21,22.84446183]
[1750114709189,9.84276373,153.24,153.21,22.84446183]
[1750114710107,9.84276373,153.24,153.18,32.64133698]
[1750114710412,48.40276373,153.25,153.2,9.84276373]
[1750114710921,9.5603,153.28,153.21,9.84276373]
[1750114711088,9.84276373,153.26,153.22,9.84276373]
[1750114711288,48.34276373,153.27,153.18,35.84276373]
[1750114711607,18.64964886,153.26,153.18,35.84276373]
[1750114712387,18.64964886,153.26,153.19,22.84744434]
[1750114712588,9.84276373,153.24,153.19,22.84744434]
[1750114712810,9.84276373,153.24,153.19,32.69020807]
[1750114713618,48.30276373,153.25,153.21,6.52698909]
[1750114713799,9.84276373,153.23,153.21,6.52698909]
[1750114714820,9.84276373,153.22,153.19,6.52784124]
[1750114715589,38.46,153.25,153.18,6.52826739]
[1750114715920,9.84276373,153.22,153.18,6.52826739]
[1750114716119,38.36,153.21,153.18,6.52826739]
[1750114716337,9.84276373,153.19,153.15,6.52954619]
[1750114716507,38.36,153.21,153.15,6.52954619]
[1750114716813,9.84276373,153.16,153.1,16.32838067]
[1750114716992,9.84276373,153.14,153.1,16.32838067]
[1750114717197,48.18276373,153.21,153.13,9.84276373]
[1750114717391,38.34,153.21,153.17,9.84276373]
[1750114717708,48.0439,153.23,153.19,16.37060497]
[1750114717919,57.88666373,153.23,153.19,6.52784124]
[1750114718301,19.56666373,153.23,153.19,16.37060497]
[1750114718502,38.3,153.23,153.19,16.37060497]
[1750114718711,56.94964886,153.25,153.2,9.84276373]
[1750114719009,9.84276373,153.24,153.2,9.84276373]
[1750114719206,48.14276373,153.25,153.21,9.84276373]
[1750114719392,38.3,153.25,153.21,9.84276373]
[1750114719593,48.12276373,153.26,153.22,6.52656311]
[1750114719921,9.84276373,153.25,153.22,6.52656311]
[1750114720090,9.84276373,153.26,153.22,6.52656311]
[1750114720291,9.84276373,153.26,153.22,16.36932684]
[1750114720292,48.10276373,153.26,153.22,16.36932684]
[1750114720699,9.84276373,153.24,153.22,6.52656311]
[1750114721211,18.64964886,153.25,153.22,6.52656311]
[1750114721407,9.84276373,153.24,153.22,6.52656311]
[1750114721991,9.84276373,153.24,153.2,6.52741514]
[1750114722195,9.84276373,153.25,153.2,32.68871672]
[1750114722397,18.64964886,153.26,153.2,32.68871672]
[1750114722589,28.49241259,153.26,153.21,9.84276373]
[1750114723011,48.1293,153.27,153.22,9.84276373]
[1750114723207,18.64964886,153.3,153.24,9.84276373]
[1750114723415,48.02276373,153.27,153.23,26.0]
[1750114723614,9.84276373,153.25,153.2,32.68871672]
[1750114723928,9.84276373,153.25,153.21,9.84276373]
[1750114724131,9.84276373,153.25,153.2,48.84595299]
[1750114724301,9.84276373,153.25,153.21,9.84276373]
[1750114726289,9.84276373,153.25,153.22,6.52656311]
[1750114727228,9.84276373,153.26,153.22,16.36932684]
[1750114728227,0.28432314,153.29,153.22,16.36932684]
[1750114728549,9.84276373,153.26,153.22,16.36932684]
[1750114729221,38.06,153.28,153.23,9.84276373]
[1750114729421,9.84276373,153.27,153.23,9.84276373]
[1750114729723,9.84276373,153.26,153.22,32.68573461]
[1750114730025,9.84276373,153.26,153.22,6.52656311]
[1750114730233,9.84276373,153.25,153.22,6.52656311]
[1750114730414,9.84276373,153.26,153.22,32.68573461]
[1750114730615,18.64964886,153.26,153.2,26.0]
[1750114730926,18.64964886,153.2,153.11,6.53125204]
[1750114731110,37.98,153.19,153.11,55.514648]
[1750114731302,37.98,153.19,153.15,26.0]
[1750114731497,18.64964886,153.21,153.15,26.0]
[1750114731697,18.64964886,153.21,153.11,22.8583878]
[1750114731698,9.84276373,153.17,153.11,22.8583878]
[1750114731894,9.84276373,153.15,153.11,22.8583878]
[1750114732112,9.84276373,153.15,153.11,6.53125204]
[1750114732321,9.84276373,153.14,153.11,6.53125204]
[1750114732510,37.98,153.16,153.1,42.37444237]
[1750114732713,9.84276373,153.15,153.11,9.84276373]
[1750114732919,9.84276373,153.15,153.11,26.0]
[1750114733508,9.84276373,153.15,153.12,6.53082549]
[1750114734234,37.94,153.14,153.12,6.53082549]
[1750114734526,37.92,153.13,153.12,6.53082549]
[1750114735723,37.9,153.13,153.12,6.53082549]
[1750114738211,47.74276373,153.13,153.1,6.53125779]
[1750114738410,37.9,153.13,153.1,6.53125779]
[1750114739019,37.9,153.13,153.11,9.84276373]
[1750114739627,9.84276373,153.12,153.1,6.53125779]
[1750114739940,9.84276373,153.12,153.09,6.53210529]
[1750114740145,9.84276373,153.1,153.08,6.53245317]
[1750114740316,37.82,153.09,153.08,6.53245317]
[1750114742136,37.82,153.09,153.08,16.3752169]
[1750114742334,9.84276373,153.13,153.08,16.3752169]
[1750114742541,9.84276373,153.13,153.08,6.53245317]
[1750114742542,37.78,153.12,153.08,6.53245317]
[1750114742712,9.84276373,153.13,153.08,16.3752169]
[1750114743046,9.84276373,153.16,153.11,9.84276373]
[1750114743221,18.64964886,153.17,153.11,9.84276373]
[1750114743543,47.60276373,153.16,153.11,9.84276373]
[1750114743712,37.76,153.15,153.11,9.84276373]
[1750114743913,37.76,153.15,153.03,51.72]
[1750114743914,28.64234886,153.11,153.03,51.72]
[1750114744148,9.84276373,153.07,153.04,6.53423941]
[1750114744317,9.84276373,153.08,153.04,16.37700314]
[1750114744723,9.84276373,153.08,153.04,6.53423941]
[1750114744935,28.49241259,153.09,153.04,16.37700314]
[1750114745242,47.58276373,153.1,153.05,9.84276373]
[1750114745448,9.84276373,153.09,153.04,32.71260167]
[1750114745757,9.84276373,153.07,153.04,22.86983794]
[1750114746035,2.4758,153.13,153.07,26.0]
[1750114746251,28.49241259,153.11,153.07,26.0]
[1750114746547,9.84276373,153.08,153.04,48.86983794]
[1750114746747,37.7,153.07,153.04,48.86983794]
[1750114747248,37.7,153.07,152.98,46.36627949]
[1750114747249,18.64964886,153.04,152.98,13.4]
[1750114747422,37.68,153.03,152.99,9.84276373]
[1750114747735,37.68,153.03,153.02,26.0]
[1750114748112,37.68,153.03,153.02,32.53509345]
[1750114749538,37.68,153.03,153.02,6.53509345]
[1750114749920,37.68,153.03,153.02,32.53509345]
[1750114750245,37.68,153.03,152.99,16.34093731]
[1750114750246,37.68,153.03,153.01,16.37828428]
[1750114750826,18.64964886,153.05,153.02,9.84276373]
[1750114751547,47.48276373,153.06,153.01,22.87432193]
[1750114751548,37.64,153.06,153.03,9.84276373]
[1750114752051,18.64964886,153.06,153.03,9.84276373]
[1750114752359,56.24964886,153.06,153.04,6.53423941]
[1750114752521,66.09241259,153.06,153.02,6.53509345]
[1750114752848,9.84276373,153.05,153.02,6.53509345]
[1750114753018,66.09241259,153.06,153.02,6.53509345]
[1750114753424,37.6,153.06,153.02,16.37785718]
[1750114753652,47.44276373,153.06,153.02,16.37785718]
[1750114754721,47.44276373,153.06,153.02,6.53509345]
[1750114755337,9.84276373,153.05,153.02,6.53509345]
[1750114755843,47.44276373,153.06,153.02,6.53509345]
[1750114756058,37.6,153.06,153.02,32.7155908]
[1750114756256,37.6,153.06,153.03,9.84276373]
[1750114756462,47.44276373,153.06,153.02,22.87282707]
[1750114756634,9.84276373,153.03,153.0,6.53594771]
[1750114756835,9.84276373,153.01,152.99,6.53630559]
[1750114757039,47.36276373,153.02,152.99,6.53630559]
[1750114757553,37.52,153.02,152.99,6.53630559]
[1750114757757,3.4,153.08,153.01,9.84276373]
[1750114757945,28.49241259,153.06,153.01,9.84276373]
[1750114758274,47.34276373,153.07,153.02,9.84276373]
[1750114758644,47.34276373,153.07,153.03,6.5346664]
[1750114758874,9.84276373,153.06,153.03,6.5346664]
[1750114760767,9.84276373,153.06,153.02,6.53509345]
[1750114761871,9.84276373,153.06,153.02,9.84276373]
[1750114763258,9.84276373,153.06,153.01,26.18135734]
[1750114764039,9.84276373,153.03,152.99,22.87731223]
[1750114764233,37.38,153.03,153.01,9.84276373]
[1750114764435,37.38,153.03,153.0,9.84276373]
[1750114765740,37.38,153.03,153.02,9.84276373]
[1750114766260,37.38,153.03,153.02,16.37785718]
[1750114766936,37.38,153.03,153.02,6.53509345]
[1750114767335,31.89241259,153.08,153.02,22.87282707]
[1750114767568,47.16276373,153.07,153.03,9.84276373]
[1750114767741,47.16276373,153.07,153.02,32.7155908]
[1750114768676,22.04964886,153.08,153.03,9.84276373]
[1750114768972,37.28,153.07,153.04,9.84276373]
[1750114769179,13.24276373,153.08,153.04,9.84276373]
[1750114769356,37.26,153.07,153.04,9.84276373]
[1750114769680,37.26,153.06,153.02,22.87282707]
[1750114770049,37.26,153.06,153.03,9.84276373]
[1750114770545,37.26,153.06,153.02,22.87282707]
[1750114770746,37.26,153.06,153.05,6.53381247]
[1750114771875,3.4,153.08,153.05,13.11030069]
[1750114772053,12.5611,153.17,153.07,6.57648822]
[1750114772253,18.64964886,153.16,153.12,6.57648822]
[1750114772452,18.64964886,153.16,153.05,22.86834366]
[1750114772662,37.2,153.15,153.13,6.57648822]
[1750114772863,37.2,153.15,153.13,9.85315775]
[1750114773166,37.18,153.14,153.13,9.85315775]
[1750114773478,37.18,153.14,153.11,9.85315775]
[1750114773658,9.85315775,153.16,153.11,9.85315775]
[1750114773856,47.03315775,153.15,153.09,6.53210529]
[1750114774048,9.85315775,153.14,153.1,9.85315775]
[1750114774569,47.03315775,153.15,153.1,9.85315775]
[1750114774747,47.03315775,153.15,153.11,9.85315775]
[1750114775784,3.4,153.19,153.11,9.85315775]
[1750114775979,42.90771726,153.24,153.11,9.85315775]
[1750114775980,22.83053219,153.31,153.18,19.7063155]
[1750114776146,4.62162381,153.3,153.19,7.18978852]
[1750114776346,9.85315775,153.3,153.19,13.3407866]
[1750114776577,9.85315775,153.28,153.2,13.0]
[1750114776784,46.95315775,153.27,153.2,13.0]
[1750114777076,46.95315775,153.27,153.2,22.85315775]
[1750114777077,9.85315775,153.25,153.2,22.85315775]
[1750114777375,18.64964886,153.26,153.2,13.0]
[1750114777681,28.92834886,153.26,153.2,19.52725017]
[1750114777878,9.85315775,153.22,153.18,6.5279092]
[1750114778054,9.85315775,153.21,153.18,6.5279092]
[1750114778381,37.08,153.22,153.18,6.5279092]
[1750114778677,46.93315775,153.22,153.18,6.5279092]
[1750114778905,37.08,153.22,153.19,9.85315775]
[1750114779468,37.08,153.22,153.19,16.38070616]
[1750114780388,46.93315775,153.22,153.15,29.32386549]
[1750114780598,9.85315775,153.21,153.16,16.38227762]
[1750114780902,9.85315775,153.21,153.17,9.85315775]
[1750114781282,9.85315775,153.21,153.16,6.52911987]
[1750114781599,9.85315775,153.21,153.16,16.38227762]
[1750114782087,9.85315775,153.2,153.16,16.38227762]
[1750114783704,62.25624481,153.22,153.15,16.38262223]
[1750114783989,9.85315775,153.19,153.13,13.0]
[1750114784207,18.64964886,153.15,153.03,2.5488]
[1750114784402,9.85315775,153.1,153.05,9.85315775]
[1750114784571,46.79315775,153.1,153.05,9.85315775]
[1750114784764,9.85315775,153.09,153.04,42.38739716]
[1750114785195,46.79315775,153.1,153.01,13.0]
[1750114785405,9.85315775,153.09,153.02,6.53509345]
[1750114785693,9.85315775,153.08,153.03,9.85315775]
[1750114786079,9.85315775,153.08,153.04,9.85315775]
[1750114786483,9.85315775,153.08,153.04,26.0]
[1750114786673,28.50280661,153.07,153.04,26.0]
[1750114786865,9.85315775,153.07,153.02,6.53509345]
[1750114787188,9.85315775,153.07,153.02,16.3882512]
[1750114787965,20.18465775,153.18,153.06,9.85315775]
[1750114788163,20.18465775,153.18,153.04,26.0]
[1750114788164,18.64964886,153.14,153.1,9.85315775]
[1750114788367,28.50280661,153.14,153.09,9.85315775]
[1750114788596,9.85315775,153.13,153.08,9.85315775]
[1750114788802,36.88,153.13,153.09,9.85315775]
[1750114789382,46.73315775,153.13,153.08,9.85315775]
[1750114789591,46.73315775,153.13,153.08,16.38542441]
[1750114790277,36.88,153.13,153.09,9.85315775]
[1750114791443,2.3533,153.17,153.11,9.85315775]
[1750114791581,28.50280661,153.16,153.11,16.38424118]
[1750114791772,9.85315775,153.15,153.11,16.38424118]
[1750114791972,36.84,153.14,153.11,16.38424118]
[1750114792667,36.84,153.14,153.11,6.53108343]
[1750114792870,36.84,153.14,153.11,16.38424118]
[1750114793070,36.84,153.14,153.11,6.53108343]
[1750114793270,36.84,153.14,153.11,16.38424118]
[1750114794079,36.84,153.14,153.12,9.85315775]
[1750114794283,36.84,153.14,153.1,6.53167864]
[1750114794469,36.84,153.14,153.12,9.85315775]
[1750114794669,20.18465775,153.18,153.1,22.86087524]
[1750114794901,58.82964886,153.17,153.1,22.86087524]
[1750114795304,58.82964886,153.17,153.14,9.85315775]
[1750114795604,22.04964886,153.17,153.14,9.85315775]
[1750114795902,22.04964886,153.17,153.1,22.86087524]
[1750114795903,58.82964886,153.17,153.13,9.85315775]
[1750114796104,58.82964886,153.17,153.14,6.52997257]
[1750114796307,36.78,153.16,153.14,6.52997257]
[1750114798386,36.78,153.16,153.13,9.85315775]
[1750114798696,36.78,153.16,153.12,9.85315775]
[1750114798697,46.63315775,153.16,153.12,9.85315775]
[1750114798945,46.63315775,153.16,153.1,22.86087524]
[1750114799091,46.63315775,153.16,153.12,9.85315775]
[1750114799289,28.50280661,153.14,153.1,6.53167864]
[1750114799511,36.72,153.13,153.1,16.38483639]
[1750114799987,46.57315775,153.13,153.1,6.53167864]
[1750114800186,36.72,153.13,153.1,6.53167864]
[1750114800613,18.64964886,153.1,153.02,16.3882512]
[1750114800815,9.85315775,153.05,153.02,6.53509345]
[1750114801115,18.64964886,153.02,152.94,86.81812432]
[1750114801281,65.20280661,153.02,152.97,6.53716093]
[1750114801482,55.633972,153.02,152.95,6.53808434]
[1750114801791,18.64964886,152.95,152.92,12.6]
[1750114801993,0.28432314,152.97,152.92,12.6]
[1750114802214,18.64964886,152.98,152.92,19.1392794]
[1750114802519,18.64964886,152.92,152.87,9.85315775]
[1750114802682,36.68,152.91,152.88,26.0]
[1750114803086,18.64964886,152.96,152.85,88.32188419]
[1750114803294,18.64964886,152.92,152.88,9.85315775]
[1750114803495,36.66,152.91,152.88,9.85315775]
[1750114803984,18.64964886,153.01,152.93,26.0]
[1750114804212,36.66,153.0,152.98,9.85315775]
[1750114804414,9.85315775,153.04,152.99,9.85315775]
[1750114804717,55.30964886,153.01,153.0,6.53594771]
[1750114805582,36.66,153.01,153.0,21.81219733]
[1750114805787,18.64964886,153.0,152.97,6.53684457]
[1750114806010,36.66,153.01,152.97,6.53684457]
[1750114806213,36.66,153.01,152.99,15.27624962]
[1750114806456,36.66,153.01,153.0,15.27624962]
[1750114806598,36.66,153.01,153.0,21.81219733]
[1750114807216,36.62,153.03,153.0,38.15206661]
[1750114807408,36.62,153.03,153.02,15.27624962]
[1750114807595,36.62,153.03,153.0,22.87581699]
[1750114807998,36.62,153.03,153.02,15.27624962]
[1750114808500,36.62,153.03,153.02,21.81134307]
[1750114809618,33.92589848,153.07,153.02,38.14907669]
[1750114809923,15.27624962,153.05,153.02,22.87282707]
[1750114810095,70.50589848,153.06,153.02,22.87282707]
[1750114810315,70.50589848,153.06,153.02,38.14907669]
[1750114810517,55.22964886,153.06,153.02,38.14907669]
[1750114810716,55.22964886,153.06,153.03,15.27624962]
[1750114811140,0.14216157,153.1,153.04,15.27624962]
[1750114811313,15.27624962,153.07,153.03,15.27624962]
[1750114811514,36.56,153.06,153.02,38.14907669]
[1750114811752,36.56,153.05,153.03,15.27624962]
[1750114812654,36.56,153.05,153.02,16.33773362]